fUSD/lending_fUSD_20250623
["ID","MTS","AMOUNT","RATE_DAILY","PERIOD"]
[367161471,1750680633971,-490.0,0.00024657,2]
[367161472,1750680633982,-164.978307,0.00024657,2]
[367161473,1750680633994,-172.581814,0.00024657,2]
[367161474,1750680634005,-955.94,0.00024657,2]
[367161475,1750680634016,-152.460564,0.00024657,2]
[367161476,1750680634027,-490.0,0.00024657,2]
[367161477,1750680634038,-160.97294427,0.00024657,2]
[367161478,1750680634048,-490.0,0.00024657,2]
[367161479,1750680634059,-254.773631,0.00024657,2]
[367161480,1750680634070,-490.0,0.00024657,2]
[367161481,1750680634080,-490.0,0.00024657,2]
[367161482,1750680634092,-490.0,0.00024657,2]
[367161483,1750680634103,-490.0,0.00024657,2]
[367161484,1750680634114,-830.18,0.00024657,2]
[367161485,1750680634125,-490.0,0.00024657,2]
[367161486,1750680634136,-490.0,0.00024657,2]
[367161487,1750680634147,-386.62295679,0.00024657,2]
[367161488,1750680634158,-490.0,0.00024657,2]
[367161489,1750680634168,-154.949053,0.00024657,2]
[367161490,1750680634179,-692.02,0.00024657,2]
[367161491,1750680634191,-1585.130904,0.00024657,2]
[367161492,1750680634202,-490.0,0.00024657,2]
[367161493,1750680634212,-528.60492852,0.00024657,2]
[367161494,1750680634223,-490.0,0.00024657,2]
[367161495,1750680634233,-877.0,0.00024657,2]
[367161496,1750680634244,-490.0,0.00024657,2]
[367161497,1750680634255,-490.0,0.00024657,2]
[367161498,1750680634266,-490.0,0.00024657,2]
[367161499,1750680634276,-753.32,0.00024657,2]
[367161500,1750680634287,-490.0,0.00024657,2]
[367161501,1750680634299,-490.0,0.00024657,2]
[367161502,1750680634311,-490.0,0.00024657,2]
[367161503,1750680634322,-490.0,0.00024657,2]
[367161504,1750680634334,-490.0,0.00024657,2]
[367161505,1750680634347,-490.0,0.00024657,2]
[367161506,1750680634358,-490.0,0.00024657,2]
[367161507,1750680634368,-493.0,0.00024657,2]
[367161508,1750680634379,-490.0,0.00024657,2]
[367161509,1750680634390,-490.0,0.00024657,2]
[367161510,1750680634402,-490.0,0.00024657,2]
[367161511,1750680634414,-499.99929439,0.00024657,2]
[367161512,1750680634425,-490.0,0.00024657,2]
[367161513,1750680634436,-490.0,0.00024657,2]
[367161514,1750680634448,-490.0,0.00024657,2]
[367161515,1750680634458,-732.13,0.00024657,2]
[367161516,1750680634469,-490.0,0.00024657,2]
[367161517,1750680634479,-633.29192319,0.00024657,2]
[367161518,1750680634489,-490.0,0.00024657,2]
[367161519,1750680634500,-490.0,0.00024657,2]
[367161520,1750680634511,-490.0,0.00024657,2]
[367161521,1750680634521,-490.0,0.00024657,2]
[367161522,1750680634533,-479.49406105,0.00024657,2]
[367161523,1750680634543,-490.0,0.00024657,2]
[367161524,1750680634553,-490.0,0.00024657,2]
[367161525,1750680634563,-490.0,0.00024657,2]
[367161526,1750680634574,-490.0,0.00024657,2]
[367161527,1750680634584,-689.74,0.00024657,2]
[367161528,1750680634595,-218.07255045,0.00024657,2]
[367161529,1750680634605,-538.26,0.00024657,2]
[367161530,1750680634616,-155.631392,0.00024657,2]
[367161531,1750680635225,-490.0,0.00024657,2]
[367161532,1750680635249,-490.0,0.00024657,2]
[367161533,1750680635269,-490.0,0.00024657,2]
[367161534,1750680635293,-490.0,0.00024657,2]
[367161535,1750680635305,-514.11610339,0.00024657,2]
[367161536,1750680635314,-490.0,0.00024657,2]
[367161537,1750680635323,-490.0,0.00024657,2]
[367161538,1750680635333,-490.0,0.00024657,2]
[367161539,1750680635342,-490.0,0.00024657,2]
[367161540,1750680635357,-490.0,0.00024657,2]
[367161541,1750680635366,-534.89923975,0.00024657,2]
[367161542,1750680635377,-490.0,0.00024657,2]
[367161543,1750680635387,-490.0,0.00024657,2]
[367161544,1750680635397,-151.0,0.00024657,2]
[367161545,1750680635407,-490.0,0.00024657,2]
[367161546,1750680635417,-490.0,0.00024657,2]
[367161547,1750680635426,-539.56,0.00024657,2]
[367161548,1750680635436,-490.0,0.00024657,2]
[367161549,1750680635446,-490.0,0.00024657,2]
[367161550,1750680635455,-753.61,0.00024657,2]
[367161551,1750680635465,-490.0,0.00024657,2]
[367161552,1750680635475,-490.0,0.00024657,2]
[367161553,1750680635485,-502.87266091,0.00024657,2]
[367161554,1750680635494,-518.14,0.00024657,2]
[367161555,1750680635504,-490.0,0.00024657,2]
[367161556,1750680635514,-490.0,0.00024657,2]
[367161557,1750680635524,-490.0,0.00024657,2]
[367161558,1750680635534,-490.0,0.00024657,2]
[367161559,1750680635544,-490.0,0.00024657,2]
[367161560,1750680635554,-490.0,0.00024657,2]
[367161561,1750680635564,-234.90411573,0.00024657,2]
[367161562,1750680635574,-490.0,0.00024657,2]
[367161563,1750680635584,-490.0,0.00024657,2]
[367161564,1750680635595,-501.3889969,0.00024657,2]
[367161565,1750680635604,-490.0,0.00024657,2]
[367161566,1750680635616,-490.0,0.00024657,2]
[367161567,1750680635627,-490.0,0.00024657,2]
[367161568,1750680635636,-490.0,0.00024657,2]
[367161569,1750680635646,-490.0,0.00024657,2]
[367161570,1750680635655,-490.0,0.00024657,2]
[367161571,1750680635666,-490.0,0.00024657,2]
[367161572,1750680635675,-498.2961272,0.00024657,2]
[367161573,1750680635686,-490.0,0.00024657,2]
[367161574,1750680635697,-1309.37,0.00024657,2]
[367161575,1750680635707,-354.48868587,0.00024657,2]
[367161576,1750680635717,-737.55,0.00024657,2]
[367161577,1750680635727,-754.98,0.00024657,2]
[367161578,1750680635736,-490.0,0.00024657,2]
[367161579,1750680635746,-490.0,0.00024657,2]
[367161580,1750680635755,-490.0,0.00024657,2]
[367161581,1750680635765,-490.0,0.00024657,2]
[367161582,1750680635774,-490.0,0.00024657,2]
[367161583,1750680635784,-490.0,0.00024657,2]
[367161584,1750680635794,-490.0,0.00024657,2]
[367161585,1750680635803,-504.22,0.00024657,2]
[367161586,1750680635813,-851.18,0.00024657,2]
[367161587,1750680635822,-490.0,0.00024657,2]
[367161588,1750680635832,-490.0,0.00024657,2]
[367161589,1750680635842,-490.0,0.00024657,2]
[367161590,1750680635853,-490.0,0.00024657,2]
[367161591,1750680635863,-490.0,0.00024657,2]
[367161592,1750680635872,-522.41223128,0.00024657,2]
[367161593,1750680635882,-490.0,0.00024657,2]
[367161594,1750680635892,-490.0,0.00024657,2]
[367161595,1750680635903,-638.5,0.00024657,2]
[367161596,1750680635912,-490.0,0.00024657,2]
[367161597,1750680635922,-490.0,0.00024657,2]
[367161598,1750680635932,-490.0,0.00024657,2]
[367161599,1750680635942,-1074.15,0.00024657,2]
[367161600,1750680635952,-1381.78,0.00024657,2]
[367161601,1750680635961,-505.62,0.00024657,2]
[367161602,1750680635971,-821.79,0.00024657,2]
[367161603,1750680635981,-490.0,0.00024657,2]
[367161604,1750680635990,-490.0,0.00024657,2]
[367161605,1750680636000,-490.0,0.00024657,2]
[367161606,1750680636010,-490.0,0.00024657,2]
[367161607,1750680636020,-307.56041659,0.00024657,2]
[367161608,1750680636029,-490.0,0.00024657,2]
[367161609,1750680636039,-490.0,0.00024657,2]
[367161610,1750680636049,-1045.32,0.00024657,2]
[367161611,1750680636059,-836.76,0.00024657,2]
[367161612,1750680636070,-737.16,0.00024657,2]
[367161613,1750680636079,-490.0,0.00024657,2]
[367161614,1750680636089,-198.016965,0.00024657,2]
[367161615,1750680636099,-702.94,0.00024657,2]
[367161616,1750680636109,-490.0,0.00024657,2]
[367161617,1750680636119,-490.0,0.00024657,2]
[367161618,1750680636129,-490.0,0.00024657,2]
[367161619,1750680636138,-490.0,0.00024657,2]
[367161620,1750680636148,-490.0,0.00024657,2]
[367161621,1750680636158,-302.34095174,0.00024657,2]
[367161622,1750680636167,-490.0,0.00024657,2]
[367161623,1750680636177,-1879.64,0.00024657,2]
[367161624,1750680636187,-490.0,0.00024657,2]
[367161625,1750680636197,-490.0,0.00024657,2]
[367161626,1750680636207,-505.58,0.00024657,2]
[367161627,1750680636217,-1527.27,0.00024657,2]
[367161628,1750680636227,-574.91,0.00024657,2]
[367161629,1750680636237,-490.0,0.00024657,2]
[367161630,1750680636247,-490.0,0.00024657,2]
[367161631,1750680636257,-589.2,0.00024657,2]
[367161632,1750680636266,-490.0,0.00024657,2]
[367161633,1750680636276,-498.65207558,0.00024657,2]
[367161634,1750680636285,-490.0,0.00024657,2]
[367161635,1750680636295,-1632.95,0.00024657,2]
[367161636,1750680636305,-490.0,0.00024657,2]
[367161637,1750680636314,-944.85,0.00024657,2]
[367161638,1750680636324,-490.0,0.00024657,2]
[367161639,1750680636334,-764.43,0.00024657,2]
[367161640,1750680636345,-490.0,0.00024657,2]
[367161641,1750680636355,-915.39,0.00024657,2]
[367161642,1750680636365,-533.63,0.00024657,2]
[367161643,1750680636374,-2503.05,0.00024657,2]
[367161644,1750680636384,-680.49,0.00024657,2]
[367161645,1750680636394,-490.0,0.00024657,2]
[367161646,1750680636403,-490.0,0.00024657,2]
[367161647,1750680636414,-490.0,0.00024657,2]
[367161648,1750680636425,-490.0,0.00024657,2]
[367161649,1750680636435,-490.0,0.00024657,2]
[367161650,1750680636444,-490.0,0.00024657,2]
[367161651,1750680636454,-694.17,0.00024657,2]
[367161652,1750680636464,-490.0,0.00024657,2]
[367161653,1750680636474,-635.99,0.00024657,2]
[367161654,1750680636483,-1374.15,0.00024657,2]
[367161655,1750680636493,-1255.09,0.00024657,2]
[367161656,1750680636503,-804.55,0.00024657,2]
[367161657,1750680636513,-490.0,0.00024657,2]
[367161658,1750680636523,-506.27647043,0.00024657,2]
[367161659,1750680636533,-490.0,0.00024657,2]
[367161660,1750680636542,-666.55,0.00024657,2]
[367161661,1750680636552,-499.05785946,0.00024657,2]
[367161662,1750680636561,-1513.69,0.00024657,2]
[367161663,1750680636571,-490.0,0.00024657,2]
[367161664,1750680636581,-490.0,0.00024657,2]
[367161665,1750680636592,-490.0,0.00024657,2]
[367161666,1750680636601,-1407.22,0.00024657,2]
[367161667,1750680636611,-490.0,0.00024657,2]
[367161668,1750680636624,-1726.65,0.00024657,2]
[367161669,1750680636634,-300.44562833,0.00024657,2]
[367161670,1750680636643,-490.0,0.00024657,2]
[367161671,1750680636653,-689.28,0.00024657,2]
[367161672,1750680636664,-490.0,0.00024657,2]
[367161673,1750680636673,-490.0,0.00024657,2]
[367161674,1750680636683,-490.0,0.00024657,2]
[367161675,1750680636692,-490.0,0.00024657,2]
[367161676,1750680636702,-490.0,0.00024657,2]
[367161677,1750680636712,-530.63,0.00024657,2]
[367161678,1750680636721,-490.0,0.00024657,2]
[367161679,1750680636731,-490.0,0.00024657,2]
[367161680,1750680636740,-490.0,0.00024657,2]
[367161681,1750680636750,-1563.04,0.00024657,2]
[367161682,1750680636759,-940.3,0.00024657,2]
[367161683,1750680636769,-592.9,0.00024657,2]
[367161684,1750680636778,-1243.71,0.00024657,2]
[367161685,1750680636788,-490.0,0.00024657,2]
[367161686,1750680636797,-490.0,0.00024657,2]
[367161687,1750680636807,-854.331111,0.00024657,2]
[367161688,1750680636817,-591.78,0.00024657,2]
[367161689,1750680636826,-490.0,0.00024657,2]
[367161690,1750680636835,-354.339,0.00024657,2]
[367161691,1750680636845,-1320.2,0.00024657,2]
[367161692,1750680636855,-490.0,0.00024657,2]
[367161693,1750680636864,-2165.18,0.00024657,2]
[367161694,1750680636874,-490.0,0.00024657,2]
[367161695,1750680636883,-490.0,0.00024657,2]
[367161696,1750680636893,-719.75,0.00024657,2]
[367161697,1750680636903,-490.0,0.00024657,2]
[367161698,1750680636913,-490.0,0.00024657,2]
[367161699,1750680636922,-490.0,0.00024657,2]
[367161700,1750680636932,-490.0,0.00024657,2]
[367161701,1750680636941,-490.0,0.00024657,2]
[367161702,1750680636950,-490.0,0.00024657,2]
[367161703,1750680636960,-490.0,0.00024657,2]
[367161704,1750680636970,-490.0,0.00024657,2]
[367161705,1750680636980,-490.0,0.00024657,2]
[367161706,1750680636990,-578.65,0.00024657,2]
[367161707,1750680636999,-490.0,0.00024657,2]
[367161708,1750680637009,-498.02,0.00024657,2]
[367161709,1750680637018,-897.05,0.00024657,2]
[367161710,1750680637027,-490.0,0.00024657,2]
[367161711,1750680637036,-490.0,0.00024657,2]
[367161712,1750680637046,-1205.62,0.00024657,2]
[367161713,1750680637055,-638.28,0.00024657,2]
[367161714,1750680637065,-490.0,0.00024657,2]
[367161715,1750680637074,-490.0,0.00024657,2]
[367161716,1750680637084,-490.0,0.00024657,2]
[367161717,1750680637094,-1228.4,0.00024657,2]
[367161718,1750680637103,-490.0,0.00024657,2]
[367161719,1750680637113,-490.0,0.00024657,2]
[367161720,1750680637123,-300.0,0.00024657,2]
[367161721,1750680637132,-490.0,0.00024657,2]
[367161722,1750680637142,-1218.67,0.00024657,2]
[367161723,1750680637151,-415.16,0.00024657,2]
[367161724,1750680637161,-490.0,0.00024657,2]
[367161725,1750680637171,-2103.17,0.00024657,2]
[367161726,1750680637180,-1094.95,0.00024657,2]
[367161727,1750680637189,-490.0,0.00024657,2]
[367161728,1750680637199,-490.0,0.00024657,2]
[367161729,1750680637208,-1036.84,0.00024657,2]
[367161730,1750680637218,-490.0,0.00024657,2]
[367161731,1750680637228,-529.98,0.00024657,2]
[367161732,1750680637238,-985.59,0.00024657,2]
[367161733,1750680637247,-514.48,0.00024657,2]
[367161734,1750680637256,-151.0,0.00024657,7]
[367161735,1750680637266,-490.0,0.00024657,2]
[367161736,1750680637275,-528.07333162,0.00024657,2]
[367161737,1750680637285,-1013.07,0.00024657,2]
[367161738,1750680637295,-604.81338743,0.00024657,2]
[367161739,1750680637304,-490.0,0.00024657,2]
[367161740,1750680637314,-991.33,0.00024657,2]
[367161741,1750680637323,-490.0,0.00024657,2]
[367161742,1750680637333,-490.0,0.00024657,2]
[367161743,1750680637343,-1330.97,0.00024657,2]
[367161744,1750680637352,-730.73,0.00024657,2]
[367161745,1750680637361,-1304.94,0.00024657,2]
[367161746,1750680637371,-1679.77,0.00024657,2]
[367161747,1750680637381,-490.0,0.00024657,2]
[367161748,1750680637390,-490.0,0.00024657,2]
[367161749,1750680637399,-490.0,0.00024657,2]
[367161750,1750680637409,-1244.97,0.00024657,2]
[367161751,1750680637419,-840.48,0.00024657,2]
[367161752,1750680637428,-490.0,0.00024657,2]
[367161753,1750680637438,-497.04396212,0.00024657,2]
[367161754,1750680637448,-1293.98,0.00024657,2]
[367161755,1750680637458,-490.0,0.00024657,2]
[367161756,1750680637467,-530.58,0.00024657,2]
[367161757,1750680637477,-1118.88,0.00024657,2]
[367161758,1750680637487,-710.44,0.00024657,2]
[367161759,1750680637496,-495.83,0.00024657,2]
[367161760,1750680637506,-534.52,0.00024657,2]
[367161761,1750680637516,-490.0,0.00024657,2]
[367161762,1750680637526,-555.58,0.00024657,2]
[367161763,1750680637536,-970.53,0.00024657,2]
[367161764,1750680637545,-490.0,0.00024657,2]
[367161765,1750680637555,-1130.12,0.00024657,2]
[367161766,1750680637565,-268.64374332,0.00024657,2]
[367161767,1750680637651,-490.0,0.00024657,2]
[367161768,1750680637664,-346.50740996,0.00024657,2]
[367161769,1750680637673,-1999.02,0.00024657,2]
[367161770,1750680637685,-490.0,0.00024657,2]
[367161771,1750680637696,-490.0,0.00024657,2]
[367161772,1750680637705,-508.05,0.00024657,2]
[367161773,1750680637714,-1539.47,0.00024657,2]
[367161774,1750680637724,-308.63011231,0.00024657,2]
[367161775,1750680637733,-779.1,0.00024657,2]
[367161776,1750680637742,-490.0,0.00024657,2]
[367161777,1750680637752,-623.07,0.00024657,2]
[367161778,1750680637761,-725.52,0.00024657,2]
[367161779,1750680637771,-870.18,0.00024657,2]
[367161780,1750680637780,-359.12065816,0.00024657,2]
[367161781,1750680637790,-840.61,0.00024657,2]
[367161782,1750680637800,-233.98154638,0.00024657,2]
[367161783,1750680637809,-490.0,0.00024657,2]
[367161784,1750680637821,-490.0,0.00024657,2]
[367161785,1750680637830,-2140.26,0.00024657,2]
[367161786,1750680637840,-151.0,0.00024657,2]
[367161787,1750680637849,-490.0,0.00024657,2]
[367161788,1750680637859,-490.0,0.00024657,2]
[367161789,1750680637868,-1070.37,0.00024657,2]
[367161790,1750680637877,-253.54489225,0.00024657,2]
[367161791,1750680637886,-490.0,0.00024657,2]
[367161792,1750680637895,-1482.82,0.00024657,2]
[367161793,1750680637904,-490.0,0.00024657,2]
[367161794,1750680637914,-1239.37,0.00024657,2]
[367161795,1750680637923,-490.0,0.00024657,2]
[367161796,1750680637932,-490.0,0.00024657,2]
[367161797,1750680637941,-576.25,0.00024657,2]
[367161798,1750680637950,-490.0,0.00024657,2]
[367161799,1750680637959,-1163.36,0.00024657,2]
[367161800,1750680637969,-490.0,0.00024657,2]
[367161801,1750680637978,-151.0,0.00024657,7]
[367161802,1750680637987,-490.0,0.00024657,2]
[367161803,1750680637996,-932.57,0.00024657,2]
[367161804,1750680638005,-493.11429948,0.00024657,2]
[367161805,1750680638014,-490.0,0.00024657,2]
[367161807,1750680638023,-490.0,0.00024657,2]
[367161808,1750680638032,-543.13,0.00024657,2]
[367161810,1750680638041,-214.65378521,0.00024657,2]
[367161811,1750680638050,-490.0,0.00024657,2]
[367161812,1750680638059,-2157.32,0.00024657,2]
[367161813,1750680638068,-796.77,0.00024657,2]
[367161814,1750680638077,-515.53720027,0.00024657,2]
[367161815,1750680638086,-223.78560954,0.00024657,2]
[367161816,1750680638095,-496.84211191,0.00024657,2]
[367161817,1750680638104,-490.0,0.00024657,2]
[367161818,1750680638113,-490.0,0.00024657,2]
[367161819,1750680638122,-440.02457684,0.00024657,2]
[367161820,1750680638131,-490.0,0.00024657,2]
[367161821,1750680638140,-496.45323105,0.00024657,2]
[367161822,1750680638149,-490.0,0.00024657,2]
[367161823,1750680638158,-490.0,0.00024657,2]
[367161824,1750680638168,-490.0,0.00024657,2]
[367161825,1750680638177,-490.0,0.00024657,2]
[367161826,1750680638186,-490.0,0.00024657,2]
[367161827,1750680638195,-490.0,0.00024657,2]
[367161828,1750680638204,-844.02,0.00024657,2]
[367161829,1750680638213,-1645.22,0.00024657,2]
[367161830,1750680638222,-578.46,0.00024657,2]
[367161831,1750680638231,-490.0,0.00024657,2]
[367161832,1750680638240,-1025.83,0.00024657,2]
[367161833,1750680638249,-151.567758,0.00024657,7]
[367161834,1750680638258,-1003.38,0.00024657,2]
[367161835,1750680638267,-1365.02,0.00024657,2]
[367161836,1750680638276,-490.0,0.00024657,2]
[367161837,1750680638285,-490.0,0.00024657,2]
[367161838,1750680638294,-1080.88,0.00024657,2]
[367161839,1750680638303,-1918.96,0.00024657,2]
[367161840,1750680638313,-490.0,0.00024657,2]
[367161841,1750680638322,-823.74,0.00024657,2]
[367161842,1750680638333,-490.0,0.00024657,2]
[367161843,1750680638342,-490.0,0.00024657,2]
[367161844,1750680638351,-490.0,0.00024657,2]
[367161845,1750680638361,-490.0,0.00024657,2]
[367161846,1750680638371,-490.0,0.00024657,2]
[367161847,1750680638380,-641.64,0.00024657,2]
[367161848,1750680638390,-263.34870109,0.00024657,2]
[367161849,1750680638399,-765.46,0.00024657,2]
[367161850,1750680638408,-490.0,0.00024657,2]
[367161851,1750680638418,-609.48,0.00024657,2]
[367161852,1750680638428,-738.09,0.00024657,2]
[367161853,1750680638437,-1456.11,0.00024657,2]
[367161855,1750680638446,-559.25,0.00024657,2]
[367161857,1750680638455,-303.67,0.00024657,2]
[367161859,1750680638464,-1465.16,0.00024657,2]
[367161861,1750680638475,-1954.97,0.00024657,2]
[367161862,1750680638484,-490.0,0.00024657,2]
[367161864,1750680638493,-724.69,0.00024657,2]
[367161866,1750680638502,-490.0,0.00024657,2]
[367161868,1750680638511,-490.0,0.00024657,2]
[367161870,1750680638520,-1079.47,0.00024657,2]
[367161872,1750680638529,-490.0,0.00024657,2]
[367161874,1750680638538,-490.0,0.00024657,2]
[367161876,1750680638547,-1080.4,0.00024657,2]
[367161878,1750680638557,-934.58,0.00024657,2]
[367161880,1750680638566,-490.0,0.00024657,2]
[367161882,1750680638575,-490.0,0.00024657,2]
[367161885,1750680638584,-1382.99,0.00024657,2]
[367161887,1750680638593,-1228.95,0.00024657,2]
[367161889,1750680638602,-490.0,0.00024657,2]
[367161891,1750680638611,-490.0,0.00024657,2]
[367161893,1750680638624,-590.32,0.00024657,2]
[367161895,1750680638632,-490.0,0.00024657,2]
[367161897,1750680638641,-490.0,0.00024657,2]
[367161899,1750680638650,-490.0,0.00024657,2]
[367161901,1750680638659,-490.0,0.00024657,2]
[367161903,1750680638670,-490.0,0.00024657,2]
[367161905,1750680638679,-990.02890458,0.00024657,2]
[367161910,1750680638729,-407.75109542,0.00024657,2]
[367161911,1750680638738,-270.12823838,0.00024657,2]
[367161912,1750680638763,-425.73176162,0.00024657,2]
[367161913,1750680638772,-68.96501829,0.00024657,2]
[367161914,1750680638784,-421.03498171,0.00024657,2]
[367161915,1750680638793,-490.0,0.00024657,2]
[367161917,1750680638802,-230.65777914,0.00024657,2]
[367161919,1750680638813,-629.92222086,0.00024657,2]
[367161921,1750680638822,-212.56338145,0.00024657,2]
[367161923,1750680638833,-252.57382848,0.00024657,2]
[367161943,1750680640527,-1092.6,0.00024657,2]
[367161944,1750680640543,-415.4,0.00024657,2]
[367161945,1750680640553,-24.86279007,0.00024657,2]
[367161946,1750680640562,-448.79274752,0.00024657,2]
[367161947,1750680640575,-41.20725248,0.00024657,2]
[367161948,1750680640584,-738.59085888,0.00024657,2]
[367161949,1750680640600,-150.98914112,0.00024657,2]
[367161950,1750680640610,-490.0,0.00024657,2]
[367161951,1750680640625,-490.0,0.00024657,2]
[367161952,1750680640635,-1369.17,0.00024657,2]
[367161953,1750680640645,-325.53181048,0.00024657,2]
[367161954,1750680640659,-599.31818952,0.00024657,2]
[367161955,1750680640670,-404.15225548,0.00024657,2]
[367161956,1750680641039,-561.36774452,0.00024657,2]
[367161957,1750680641049,-513.75233737,0.00024657,2]
[367161958,1750680641059,-490.0,0.00024657,2]
[367161959,1750680641068,-289.64922492,0.00024657,2]
[367161960,1750680641077,-490.0,0.00024657,2]
[367161961,1750680641087,-490.0,0.00024657,2]
[367161962,1750680641096,-490.0,0.00024657,2]
[367161963,1750680641106,-490.0,0.00024657,2]
[367161964,1750680641115,-490.0,0.00024657,2]
[367161965,1750680641124,-657.2,0.00024657,2]
[367161966,1750680641134,-490.0,0.00024657,2]
[367161967,1750680641143,-835.51,0.00024657,2]
[367161968,1750680641152,-490.0,0.00024657,2]
[367161969,1750680641161,-728.83,0.00024657,2]
[367161970,1750680641170,-188.75982988,0.00024657,2]
[367161971,1750680641545,203.0,0.00019488,2]
[367162100,1750680696876,339.0,0.00027397,120]
[367162101,1750680759062,639.99,0.00026583,120]
[367162103,1750680775666,1611.5477483,0.00037894,120]
[367162106,1750680839617,379.0,0.00027397,120]
[367162107,1750680896119,5000.0,0.000201,2]
[367162108,1750680898659,2185.02,0.00037894,60]
[367162109,1750680911332,500.0,0.000201,2]
[367162111,1750680953780,14.18700088,0.00015,2]
[367162112,1750680953810,235.81299912,0.00015,2]
[367162114,1750681001382,203.0,0.00019477,2]
[367162115,1750681147120,270.0,0.00037894,120]
[367162129,1750681248434,312.11,0.00013699,2]
[367162135,1750681361641,203.0,0.0001949,2]
[367162137,1750681508236,19046.07700088,0.00014,2]
[367162138,1750681508261,20000.0,0.00014,2]
[367162139,1750681508285,20000.0,0.00014,2]
[367162140,1750681508309,20000.0,0.00014,2]
[367162141,1750681508332,20000.0,0.00014,2]
[367162142,1750681508354,20000.0,0.00014,2]
[367162143,1750681508376,20000.0,0.00014,2]
[367162144,1750681508398,20000.0,0.00014,2]
[367162145,1750681508420,20000.0,0.00014,2]
[367162146,1750681508443,20000.0,0.00014,2]
[367162147,1750681508465,20000.0,0.00014,2]
[367162148,1750681508488,20000.0,0.00014,2]
[367162149,1750681508510,20000.0,0.00014,2]
[367162150,1750681508532,20000.0,0.00014,2]
[367162151,1750681508555,20000.0,0.00014,2]
[367162152,1750681508578,20000.0,0.00014,2]
[367162153,1750681508601,20000.0,0.00014,2]
[367162154,1750681508624,20000.0,0.00014,2]
[367162155,1750681508647,20000.0,0.00014,2]
[367162156,1750681508671,20000.0,0.00014,2]
[367162157,1750681508694,20000.0,0.00014,2]
[367162158,1750681508717,20000.0,0.00014,2]
[367162159,1750681508739,17249.2026046,0.00014,2]
[367162160,1750681508762,38704.72039452,0.00014,2]
[367162161,1750681510668,15389.6949487,0.000154,2]
[367162162,1750681512887,258.41127678,0.00037892,91]
[367162163,1750681519739,231.96353486,0.00037892,120]
[367162164,1750681525411,10022.58199082,0.00016,2]
[367162165,1750681532224,397.40530585,0.0002,120]
[367162166,1750681543894,1522.47888929,0.00037892,120]
[367162167,1750681544263,154.79316737,0.00037892,120]
[367162168,1750681544903,445.0735943,0.00037892,120]
[367162170,1750681560870,196.94639597,0.00037892,90]
[367162171,1750681565060,237.29611806,0.00037892,120]
[367162172,1750681572631,543.6551874,0.00037892,120]
[367162173,1750681575854,563.08738425,0.00037892,120]
[367162174,1750681581320,350.5188837,0.00037892,120]
[367162175,1750681630248,246.17573255,0.00015,2]
[367162179,1750681634062,3165.02906861,0.00015,2]
[367162193,1750681652673,319.95684738,0.00037892,120]
[367162194,1750681657157,395.85670848,0.00037892,120]